Cogmind - Beta 15 @@@ ROGUE MODE // 2025.08.16 @ 13:13:43 Player: saltine Result: Destroyed by PQ-Z31(R) with Subdweller Machine Gun Performance ------------- Evolutions (0) 0 Regions Visited (2) 400 Robots Destroyed (27) 135 Value Destroyed (638) 638 Prototype IDs (4) 80 Alien Tech Used (0) 0 Bonus (0) 0 TOTAL SCORE: 1253 Bonus ------- None Cogmind --------- Core Integrity 0/250 Matter 416/450 Energy 96/100 System Corruption 0% Temperature Cool (0) Movement Rolling (105) Ox1 Location -10/Subcaves Parts ------- > --- POWER (1) -------- (None) > --- PROPULSION (2) --- Wheel Compact Wheel > --- UTILITY (2) ------ High-capacity Storage Unit Large Matter Pod > --- WEAPON (2) ------- Battle Rifle Battle Cannon > --- INVENTORY (20) --- Light Ion Engine Light Treads Light Treads Subdweller Monowheel Seismic Detector Scrap Shield EM Pulse Gun Subdweller Laser Subdweller Laser Subdweller Laser Autogun Autogun Barrage Gun Light Cannon Rocket Launcher Rocket Launcher Rocket Launcher Mining Laser Multitool Peak State ------------ > --- POWER ------------ Light Ion Engine > --- PROPULSION ------- Light Treads Light Treads > --- UTILITY ---------- Improved Heat Sink High-capacity Storage Unit > --- WEAPON ----------- Autogun Autogun > --- INVENTORY -------- Light Ion Engine Light Treads Light Treads Wheel Compact Wheel Large Matter Pod Seismic Detector Scrap Shield EM Pulse Gun Subdweller Laser Subdweller Laser Autogun Autogun Light Cannon Light Cannon Rocket Launcher Rocket Launcher Rocket Launcher Mining Laser [Rating: 13] Favorites ----------- Power Light Ion Engine Engine Light Ion Engine Propulsion Light Treads Treads Light Treads Wheel Compact Wheel Utility Seismic Detector Device Seismic Detector Storage High-capacity Storage Unit Weapon Autogun Ballistic Gun Autogun Ballistic Cannon Battle Cannon Special Weapon Mining Laser Build | -11 -10 -10 ------- Run | Yrd Mat Sub Slots Evolved . | . . . Power . | . . . Propulsion . | . . . Utility . | . . . Weapon . | . . . Parts Attached 21 | 7 5 9 Power 1 | 1 . . Engine 1 | 1 . . Core . | . . . Reactor . | . . . Propulsion 5 | 2 1 2 Treads 3 | 2 1 . Leg . | . . . Wheel 2 | . . 2 Hover . | . . . Flight . | . . . Utility 6 | 2 2 2 Device 2 | 1 . 1 Storage 4 | 1 2 1 Processor . | . . . Hackware . | . . . Protection . | . . . Artifact . | . . . Weapon 9 | 2 2 5 Energy Gun . | . . . Energy Cannon . | . . . Ballistic Gun 7 | 2 2 3 Ballistic Cannon 1 | . . 1 Launcher . | . . . Special Weapon 1 | . . 1 Impact Weapon . | . . . Slashing Weapon . | . . . Piercing Weapon . | . . . Special Melee Weapon . | . . . Unidentified Prototypes . | . . . Parts Lost 5 | . . 5 Power 1 | . . 1 Propulsion 2 | . . 2 Utility 1 | . . 1 Weapon 1 | . . 1 Highest Loss Streak 5 | . . 5 To Critical Strikes . | . . . Average Backups 16 | 3 15 18 Power . | . 1 1 Propulsion 3 | 1 3 3 Utility 1 | . 1 2 Weapon 9 | . 9 11 Tool/Special . | . . . Unused Backups 20 | . 1 19 Power 1 | . . 1 Propulsion 2 | . . 2 Utility 1 | . . 1 Weapon 15 | . 1 14 Tool/Special 1 | . . 1 Average Slot Usage (%) 97 | . 99 92 Engine 11 | . 14 7 Treads 23 | . 28 15 Wheel 3 | . . 11 Device 13 | . 14 12 Storage 14 | . 14 14 Ballistic Gun 26 | . 27 23 Peak Build Rating 13 | 7 11 13 Average Rating 9 | 4 8 11 On Entrance 6 | . 7 11 Naked Turns . | . . . Heaviest Build 50 | 12 49 50 Greatest Support 40 | 40 40 40 Greatest Overweight (x) 1 | . 1 1 Average Overweight (x) . | . . 1 Largest Inventory Capacity 20 | 8 20 20 Average Capacity 18 | 6 18 20 Most Carried 20 | 5 20 20 Average Carried 16 | 3 15 19 Final Capacity 20 | 8 20 20 Final Carried 20 | 5 20 20 Class Distribution -------------------- 100% | Mutant Dominant Class ---------------- Mutant | -10/Materials Mutant | -10/Subcaves Resources | -11 -10 -10 ----------- Run | Yrd Mat Sub Matter Collected 997 | 290 407 300 Remotely . | . . . Salvage Created 902 | 101 524 277 Parts 63 | 10 32 21 Haulers Intercepted 2 | . 2 . Recyclers Shooed . | . . . Parts Field Recycled . | . . . Retrieved Matter . | . . . Parts Self-Destructed 5 | . . 5 Prevented . | . . . Kills | -11 -10 -10 ------- Run | Yrd Mat Sub Combat Hostiles Destroyed 20 | . 13 7 Guns 19 | . 13 6 Cannons 1 | . . 1 Classes Destroyed 9 | 3 5 1 Worker 1 | 1 . . Tunneler 2 | 2 . . Hauler 2 | . 2 . Recycler 1 | 1 . . Watcher 1 | . 1 . Swarmer 6 | . 6 . Grunt 6 | . 5 1 Artisan 1 | . . 1 Subdweller 8 | . 2 6 Best Kill Streak 4 | 2 4 3 Combat Bots Only 4 | . 4 3 Max Kills in Single Turn 1 | 1 1 1 Gunslinging . | . . . Exploded . | . . . Melee . | . . . Uniques/NPCs Destroyed . | . . . Combat | -11 -10 -10 -------- Run | Yrd Mat Sub Hostile Shots Fired 80 | . 47 33 Missed 24 | . 18 6 Hits 56 | . 29 27 Projectile 56 | . 29 27 AOE 5 | . . 5 Critical Strikes 2 | . 1 1 Damage Taken 1267 | . 546 721 Core 254 | . 64 190 Absorbed by Shields . | . . . Regen/Repaired (Parts) 95 | . 95 . Core Remaining (%) 100 | 100 . . Volleys Fired 77 | 5 44 28 Largest 2 | 2 2 2 Hottest 100 | 40 43 100 Shots Fired 152 | 10 88 54 Gun 144 | 10 88 46 Cannon 6 | . . 6 Launcher . | . . . Special 2 | . . 2 Kinetic 150 | 10 88 52 Thermal 2 | . . 2 Explosive . | . . . Electromagnetic . | . . . Robot Hit Streak 14 | 5 9 14 Robot Miss Streak 3 | 1 2 3 Penetration Max . | . . . Secondary Targets 3 | . 1 2 Max Gunslinging Chain 1 | . 1 1 Shots Hit Robots 106 | 7 63 36 Core Hits 45 | 5 25 15 Critical Kills . | . . . Critical Parts Destroyed . | . . . Critical Strikes . | . . . Melee Attacks . | . . . Impact . | . . . Slashing . | . . . Piercing . | . . . Sneak Attacks . | . . . Combat Hostiles . | . . . Follow-up Attacks . | . . . Damage Inflicted 1384 | 93 770 521 Guns 1249 | 86 719 444 Cannons 77 | . . 77 Explosions . | . . . Melee . | . . . Ramming 58 | 7 51 . Kinetic 1326 | 86 719 521 Thermal . | . . . Explosive . | . . . Electromagnetic . | . . . Impact . | . . . Slashing . | . . . Piercing . | . . . Highest Corruption . | . . . Average Corruption . | . . . Corruption Purged . | . . . Corruption Blocked . | . . . Overload Shots . | . . . Overflow Damage . | . . . Projectiles . | . . . Explosions . | . . . Melee . | . . . Knockbacks 2 | . . 2 Impact . | . . . Kinetic 2 | . . 2 Secondary . | . . . Self-Inflicted Damage . | . . . Shots . | . . . Rammed 7 | . 7 . Targets Rammed 9 | 1 8 . Kicked . | . . . Crushed 2 | 1 1 . Highest Temperature 29 | . 29 . Average Temperature 9 | . 9 . Received Heat Transfer 186 | . 135 51 Siege Activations . | . . . Martial Activations . | . . . Shielding Activations . | . . . Robots Disrupted . | . . . Combat Hostiles . | . . . Robots Corrupted . | . . . Combat Hostiles . | . . . Parts Fried . | . . . Impact Corruptions . | . . . Robots Melted . | . . . Combat Hostiles . | . . . Parts Melted . | . . . Heat Transferred . | . . . Parts Sabotaged . | . . . Parts Stolen . | . . . Parts Stripped . | . . . Power Chain Reactions . | . . . Alert | -11 -10 -10 ------- Run | Yrd Mat Sub Maximum Alert Level . | . . . Low Security (%) 100 | 100 100 . Level 1 . | . . . Level 2 . | . . . Level 3 . | . . . Level 4 . | . . . Level 5 . | . . . High Security . | . . . Max Security . | . . . Peak Influence 148 | 5 148 . Initial 3 | . 3 . Average 22 | 1 23 . Influence Increases 419 | 20 349 50 Destroy 0b10 Robot/C 240 | . 220 20 Destroy 0b10 Robot/NC 35 | 20 15 . Destroy Leader 36 | . 36 . Successful Hack 63 | . 63 . Lose Combat Pursuer 45 | . 15 30 Influence Decreases 417 | 15 322 80 Entered New Map 18 | . 2 16 Time Decay 399 | 15 320 64 Squads Dispatched 1 | . 1 . Investigation . | . . . Extermination . | . . . Reinforcement 1 | . 1 . Assault . | . . . Garrison . | . . . Intercept . | . . . Searches Triggered . | . . . Construction Impeded . | . . . Haulers Reinforced . | . . . Active Scanning Responses . | . . . Cargo Convoy Interrupts . | . . . Stealth | -11 -10 -10 --------- Run | Yrd Mat Sub Distress Signals . | . . . Communications Jammed . | . . . Distress Signals . | . . . Times Spotted 37 | . 29 8 Peak Tracking Total 5 | . 5 3 Tactical Retreats 3 | . 2 1 Traps | -11 -10 -10 ------- Run | Yrd Mat Sub Traps Triggered 2 | . 2 . Indirectly . | . . . Trap Hack Attempts . | . . . Triggered . | . . . Disarmed 3 | . 3 . Reprogrammed . | . . . Reused . | . . . Traps Extracted . | . . . Installed . | . . . Triggered . | . . . Machines | -11 -10 -10 ---------- Run | Yrd Mat Sub Machines Disabled . | . . . Max in Single Turn . | . . . Machines Repaired . | . . . Machines Dismantled . | . . . Machines Sabotaged . | . . . Overloaded Fab Kills . | . . . Hacking | -11 -10 -10 --------- Run | Yrd Mat Sub Machines Accessed 8 | . 8 . Terminals 6 | . 6 . Fabricators . | . . . Repair Stations 1 | . 1 . Recycling Units 1 | . 1 . Scanalyzers . | . . . Garrison Access . | . . . Total Hacks 32 | . 32 . Successful 17 | . 17 . Failed 15 | . 15 . Catastrophic 2 | . 2 . Database Lockouts . | . . . Manual 16 | . 16 . Terminals 27 | . 27 . Fabricators . | . . . Repair Stations 2 | . 2 . Recycling Units 3 | . 3 . Scanalyzers . | . . . Garrison Access . | . . . Terminal Hacks 9 | . 9 . Robot Analysis 2 | . 2 . Prototype ID Bank 2 | . 2 . Emergency Access Points 1 | . 1 . Locate Traps 2 | . 2 . Disarm Traps 1 | . 1 . Registered Components 1 | . 1 . Fabricator Hacks . | . . . Repair Station Hacks 2 | . 2 . Scan Component 1 | . 1 . Repair 1 | . 1 . Recycling Unit Hacks . | . . . Scanalyzer . | . . . Garrison Access Hacks . | . . . Unauthorized Hacks 6 | . 6 . Terminals 6 | . 6 . Track 2 | . 2 . Assimilate 1 | . 1 . Botnet 1 | . 1 . Disrupt 1 | . 1 . Operators 1 | . 1 . Fabricators . | . . . Repair Stations . | . . . Recycling Units . | . . . Scanalyzers . | . . . Garrison Access . | . . . Data Cores Recovered . | . . . Used . | . . . Hacking Detections 8 | . 8 . Full Trace Events . | . . . Feedback Events . | . . . Feedback Blocked . | . . . Robot Schematics Acquired . | . . . Robots Built . | . . . Authchips . | . . . Time . | . . . Total Robot Build Rating . | . . . Part Schematics Acquired . | . . . Parts Built . | . . . Authchips . | . . . Time . | . . . Total Part Build Rating . | . . . Parts Repaired 1 | . 1 . Time 32 | . 32 . Parts Recycled . | . . . Recycled Matter . | . . . Retrieved Matter . | . . . Retrieved Components . | . . . Parts Scanalyzed . | . . . Part Schematics Acquired . | . . . Parts Damaged . | . . . Bothacking | -11 -10 -10 ------------ Run | Yrd Mat Sub Used RIF Installer . | . . . Robots Hacked . | . . . Non-combat . | . . . Combat . | . . . Robot Hacks Applied . | . . . Relay Couplers Released . | . . . Fabnet Peak Effective % . | . . . Robots Rewired . | . . . Allies Hacked . | . . . Hacks Repelled . | . . . Allies | -11 -10 -10 -------- Run | Yrd Mat Sub Total Allies . | . . . Largest Group . | . . . Highest-Rated Group . | . . . Highest-Rated Ally . | . . . Total Orders . | . . . Ally Attacks . | . . . Total Damage . | . . . Kills . | . . . Allies Corrupted . | . . . Allies Melted . | . . . Intel | -11 -10 -10 ------- Run | Yrd Mat Sub Active Infowar (turns) 3247 | 39 2268 940 Seismic 3247 | 39 2268 940 Robot Analysis Total 2 | . 2 . Derelict Logs Recovered . | . . . Drone Launches . | . . . Drone Recoveries . | . . . Exploration | -11 -10 -10 ------------- Run | Yrd Mat Sub Turns Passed 3539 | 108 2268 1163 Spaces Moved 1437 | 51 879 507 Core 3 | 3 . . Treads 1066 | 48 879 139 Legs . | . . . Wheels 368 | . . 368 Hover . | . . . Flight . | . . . Fastest Speed 50 | 50 160 105 Average Speed 191 | 153 222 142 Slowest Speed 240 | 160 240 240 Overloaded Moves . | . . . Propulsion Burnouts . | . . . Robots Hopped . | . . . Potential Cave-ins . | . . . Cave-ins Triggered . | . . . Exploration Rate (%) 45 | 4 98 34 Regions Visited 2 Branch Regions 1 Pre-discovered Areas . | . . . Known Exits Taken . | . . . Unknown Exits Taken 2 | 1 1 . Scrap Searched 3 | . . 3 Spaces Dug . | . . . Terrain Destroyed . | . . . Melee . | . . . Projectile . | . . . AOE . | . . . Terrain Rammed . | . . . Walls Destroyed . | . . . Machines Disabled . | . . . Actions | -11 -10 -10 --------- Run | Yrd Mat Sub Total 2066 | 68 1100 898 Wait 474 | . 141 333 Move 1436 | 51 878 507 Hop . | . . . Pick Up 31 | 5 18 8 Fast Attach 9 | 7 1 1 Attach 4 | . . 4 Detach . | . . . Swap 16 | . 5 11 Drop 11 | . 5 6 Fire 77 | 5 44 28 Melee . | . . . Ram . | . . . Kick . | . . . Crush 8 | . 8 . Escape Stasis . | . . . Rewire . | . . . Trap . | . . . Miscellaneous . | . . . Route ------- -11/Scrapyard -10/Materials (discovered 5 exits: [*Mat x3] / [*Min] / [*Sub]) -10/Subcaves (discovered 1 exit: [*Mat]) History --------- Turn | Location | Event 12 | -11/Scrapyard | Discovered new exit (range 15) 109 | -11/Scrapyard | Entered Materials 300 | -10/Materials | Build established: Mutant 631 | -10/Materials | Discovered new exit (range 16) 709 | -10/Materials | Derelicts attacked the area 946 | -10/Materials | Discovered new exit (range 12) 1532 | -10/Materials | Discovered new exit (range 16) 1648 | -10/Materials | Discovered new exit (range 13) 2053 | -10/Materials | Repaired Autogun 2358 | -10/Materials | Discovered new exit (range 9) 2377 | -10/Materials | Entered Subcaves 2378 | -10/Subcaves | Approached by a straggling Scientist 2397 | -10/Subcaves | Ambushed by angry Subdweller bent on revenge 2505 | -10/Subcaves | Discovered new exit (range 5) 3033 | -10/Subcaves | Disturbed a concealed Subdweller 3040 | -10/Subcaves | Core integrity fell below 50% 3076 | -10/Subcaves | Lost 5 parts (1p2n1u1w) 3156 | -10/Subcaves | Shifting Twisted Machinery released Battle Rifle 3159 | -10/Subcaves | Shifting Twisted Machinery released Battle Cannon 3381 | -10/Subcaves | Core integrity fell below 20% 3540 | -10/Subcaves | Destroyed by PQ-Z31(R) with Subdweller Machine Gun Last Messages --------------- Battle Rifle falls loose from the Twisted Machinery. Battle Cannon falls loose from the Twisted Machinery. 03161_ Dropped Autogun. 03162_ Acquired Battle Rifle. 03175_ Dropped Lgt. Cannon. 03176_ Acquired Battle Cannon. 03247_ Acquired 30 matter. 03253_ Dropped Sub. Shrapnel Launcher. 03253_ Acquired Multitool. 03380_ G-34 Mercenary knocked back. 03383_ G-34 Mercenary destroyed. 03387_ Acquired 35 matter. 03388_ Acquired 5 matter. 03390_ Sml. Laser fries itself beyond repair. 03393_ Subatomizers dissect the Sub. Optics. 03394_ Aluminum Leg fries itself beyond repair. 03394_ Ion Engine fries itself beyond repair. 03402_ Acquired 14 matter. 03403_ Subatomizers dissect the Sub. Optics. 03525_ PQ-Z31(R) knocked back. Map ----- +----------------------------------------------------+ | ???????????????#### ## | | ???????????????# ## | | ???????????????# ### | | ???????????????#### ### | | ??????????????????## ## | | ???????????????????## #### | | ????????????????????### #??? | | ??????????????????????# ###??? | | ??????????????????????### #????? | | ????????????????????????# #????? | | ????????????????????????# #????? | | ???????????????????????## ##????? | | ?????????????????????### #?????? | | ????????????????????## ##?????? | | ??????????????????### ##??????? | | ?????????????????## ##???????? | | ????????????????## #????????? | | ??????????????### ####????????? | | ?????####???### #???????????? | | ???" "&""#### #???????????? | | ???" """"" ### # ##???????????? | | ????" &""" ## ######????????????? | | ??????""" ## #?????????????????? | | ????????" # #?????????????????? | | ????????##R## #?????????????????? | | ????????#@ #" #?????????????????? | | ????????# #?????????????????? | | ????????# #?????????????????? | | ????????# #< #?????????????????? | | ????????#####< #?????????????????? | | ????????????# #?????????????????? | | ????????????## ????????????????? | | ?????????????# ???????????????? | | ?????????????## #??????????????? | | ??????????????? #??????????????? | | ??????????????? ??????????????? | | ???????????????### ?????????????? | | ??????????????????# ?????????????? | | ???????????????????#?????????????? | | ?????????????????????????????????? | | ?????????????????????????????????? | | ?????????????????????????????????? | | ?????????????????????????????????? | | ?????????????????????????????????? | | ?????????????????????????????????? | | ?????????????????????????????????? | | ?????????????????????????????????? | | ?????????????????????????????????? | | ?????????????????????????????????? | | ?????????????????????????????????? | +----------------------------------------------------+ Best States ------------- Heat Dissipation 39 Energy Generation 10 Energy Capacity 125 Matter Stores 440 Matter Capacity 450 Sight Range 16 Terrain Scan Density 10 Evasion (%) 40 Recoil Reduction 2 Item Schematics ----------------- None Robot Schematics ------------------ None Fabricated ------------ Nothing Repaired ---------- Autogun | 17% | -10/Materials Alien Tech Used ----------------- None Achievements -------------- None Challenges ------------ None Game ------ Seed GrenadeQuantumChronowheel Manual? 0 Play Time 00:18:38 Cumulative 575.3 hours Start 2025.08.16 @ 12:58:53 End 2025.08.16 @ 13:13:43 Sessions 1 Manual Loads 0 Difficulty Rogue Special Mode None Game No. 245 Rogue 245 Adventurer 0 Explorer 0 Win Type - Total 27 Types 9/4/7/2/1/0/1/1/1/1 Lore% 92 Gallery% 87 Achievement% 81 Wizard Run 0 Options --------- Layout 0 ASCII 0 Keyboard 0 Movement Arrows Keybinds 0 Fullscreen 2 Font 18/SmallcapsGlow Map View 76x50 Zoom Use 0% Tactical HUD 1 Map Filters NONE Filters NONE Steam 1 RUN: 54e77d36-f1a1-4423-abca-bc31ac580a97